fUSD/lending_fUSD_20251227
["ID","MTS","AMOUNT","RATE_DAILY","PERIOD"]
[399883995,1766805051126,-403.95,0.00038999,2]
[399883996,1766805051136,-403.95,0.00038999,2]
[399883997,1766805051145,-403.95,0.00038999,2]
[399883998,1766805051155,-403.95,0.00038999,2]
[399883999,1766805051166,-403.95,0.00038999,2]
[399884000,1766805051175,-404.03974745,0.00038999,2]
[399884001,1766805051186,-1298.76,0.00038999,2]
[399884002,1766805051196,-1298.76,0.00038999,2]
[399884003,1766805051205,-1298.76,0.00038999,2]
[399884004,1766805051215,-1298.76,0.00038999,2]
[399884005,1766805051225,-1298.76,0.00038999,2]
[399884006,1766805051235,-1298.76,0.00038999,2]
[399884007,1766805051245,-1298.76,0.00038999,2]
[399884008,1766805051254,-1298.99381655,0.00038999,2]
[399884009,1766805051265,-500.0,0.00038999,2]
[399884010,1766805051275,-620.30213927,0.00038999,2]
[399884011,1766805051286,-337.78,0.00038999,2]
[399884012,1766805051296,-337.78,0.00038999,2]
[399884013,1766805051316,-337.78,0.00038999,2]
[399884014,1766805051326,-337.78,0.00038999,2]
[399884015,1766805051336,-337.78,0.00038999,2]
[399884016,1766805051346,-337.78,0.00038999,2]
[399884017,1766805051355,-337.78,0.00038999,2]
[399884018,1766805051366,-338.01141846,0.00038999,2]
[399884019,1766805051376,-500.0,0.00038999,2]
[399884020,1766805051386,-500.0,0.00038999,2]
[399884021,1766805051396,-500.0,0.00038999,2]
[399884022,1766805051406,-500.0,0.00038999,2]
[399884023,1766805051416,-500.0,0.00038999,2]
[399884024,1766805051426,-500.0,0.00038999,2]
[399884025,1766805051435,-620.10818551,0.00038999,2]
[399884026,1766805051446,-1123.03197917,0.00039,31]
[399884027,1766805051455,-1100.0,0.00039,14]
[399884028,1766805051465,-800.0,0.00039,14]
[399884029,1766805051475,-500.0,0.00039,14]
[399884030,1766805051484,-6028373.44849673,0.00039,2]
[399884031,1766805051724,-151.0,0.00015068,2]
[399884032,1766805051734,-151.0,0.00015068,2]
[399884033,1766805051744,-151.0,0.00015068,2]
[399884034,1766805051753,-151.0,0.00015068,2]
[399884035,1766805051763,-151.0,0.00015068,2]
[399884036,1766805051773,-151.0,0.00015068,2]
[399884037,1766805051782,-151.0,0.00015231,2]
[399884038,1766805051792,-1.32946893,0.00015231,2]
[399884039,1766805051804,-149.67053107,0.00015231,2]
[399884040,1766805051814,-210.79742119,0.00017,2]
[399884041,1766805051824,-177.00378518,0.00017976,2]
[399884042,1766805051836,-4631.99621482,0.00017976,2]
[399884043,1766805051846,-633.35107099,0.00020976,2]
[399884044,1766805051857,-532.6831561,0.00020976,2]
[399884045,1766805051880,-922.32563174,0.00020976,2]
[399884046,1766805051892,-2720.64014117,0.00020976,2]
[399884047,1766805051901,-4809.0,0.00023976,2]
[399884048,1766805051911,-4809.0,0.00026976,2]
[399884049,1766805051920,-4809.0,0.00029976,2]
[399884050,1766805051929,-4809.0,0.00032976,2]
[399884051,1766805051939,-4003.673,0.00035976,2]
[399884052,1766805051949,-149142.71946195,0.00039,2]
[399884053,1766805051961,-609.47392455,0.00039,2]
[399884054,1766805052042,-29961.97317269,0.00039,2]
[399884055,1766805052054,-500.0,0.00039,2]
[399884056,1766805052066,-3423.182228,0.00039,2]
[399884057,1766805052077,-969.31963042,0.00039,2]
[399884059,1766805463701,1564.0,0.0003013,120]
[399884065,1766805864778,535.75203565,0.00030136,120]
[399884072,1766806049385,500.0,0.00030136,120]
[399884073,1766806049619,500.0,0.00030136,120]
[399884074,1766806049876,500.0,0.00030136,120]
[399884075,1766806050132,500.0,0.00030136,120]
[399884076,1766806050362,500.0,0.00030136,120]
[399884077,1766806050588,500.0,0.00030136,120]
[399884078,1766806050844,155.9872504,0.00030136,120]
[399884081,1766806118471,9901.73531302,0.0002739,120]
[399884090,1766806231493,-439.844,0.00012697,2]
[399884091,1766806231503,-45.92162377,0.00012743,2]
[399884093,1766806231516,-954.07837623,0.00012743,2]
[399884094,1766806231526,-250.0,0.00012771,2]
[399884097,1766806231537,-314.25300912,0.00012834,2]
[399884099,1766806231547,-851.05096723,0.00012844,2]
[399884101,1766806231560,-428.94903277,0.00012844,2]
[399884103,1766806231570,-300.0,0.00012854,2]
[399884105,1766806231580,-300.0,0.00012854,2]
[399884106,1766806231590,-1200.0,0.00012854,2]
[399884107,1766806231599,-150.0,0.00012854,2]
[399884108,1766806231609,-8370.88636607,0.00012855,2]
[399884109,1766806231622,-2108.01942602,0.00012855,2]
[399884110,1766806231634,-3145.62502986,0.00012855,2]
[399884111,1766806231647,-884.87632471,0.00012855,2]
[399884112,1766806231658,-22722.09,0.00012855,2]
[399884113,1766806231670,-868.46461215,0.00012855,2]
[399884114,1766806231682,-2652.95998215,0.00012855,2]
[399884115,1766806231693,-268.99999996,0.00012855,2]
[399884116,1766806231714,-1165.66,0.00012855,2]
[399884117,1766806231772,-2279.85668093,0.00012855,2]
[399884118,1766806231784,-1114.32355392,0.00012855,2]
[399884131,1766806237622,-500.0,0.00012854,2]
[399884132,1766806237633,-500.0,0.00012854,2]
[399884133,1766806237643,-500.0,0.00012854,2]
[399884134,1766806237653,-389.45118596,0.00012854,2]
[399884135,1766806237665,-110.54881404,0.00012854,2]
[399884136,1766806237675,-500.0,0.00012854,2]
[399884137,1766806237686,-500.0,0.00012854,2]
[399884138,1766806237696,-500.0,0.00012854,2]
[399884139,1766806237706,-500.0,0.00012854,2]
[399884140,1766806237716,-500.0,0.00012854,2]
[399884141,1766806237726,-500.0,0.00012854,2]
[399884142,1766806237736,-500.0,0.00012854,2]
[399884143,1766806237747,-500.0,0.00012854,2]
[399884144,1766806237761,-500.0,0.00012854,2]
[399884145,1766806237771,-321.60318606,0.00012854,2]
[399884146,1766806237783,-178.39681394,0.00012854,2]
[399884147,1766806237793,-500.0,0.00012854,2]
[399884148,1766806237803,-500.0,0.00012854,2]
[399884149,1766806237814,-558.82718375,0.00012854,2]
[399884150,1766806237824,-500.0,0.00012854,2]
[399884151,1766806237834,-587.4002577,0.00012855,2]
[399884153,1766806237846,-1685.3634837,0.00012855,2]
[399884154,1766806237858,-355.31274187,0.00012855,2]
[399884155,1766806237870,-356.71,0.00012855,2]
[399884156,1766806237882,-951433.45154096,0.00012855,2]
[399884157,1766806237893,-332.9949,0.00012856,2]
[399884158,1766806237902,-2500.0,0.00012856,2]
[399884159,1766806237912,-158.41226067,0.00012872,2]
[399884160,1766806237923,-194.62871117,0.00012872,2]
[399884161,1766806237932,-420.69806268,0.00012955,2]
[399884162,1766806237941,-1039.08,0.00012955,2]
[399884163,1766806237951,-55965.51819689,0.00012955,2]
[399884164,1766806237960,-10227.28424536,0.00012972,2]
[399884165,1766806237970,-152.3880797,0.00012996,2]
[399884166,1766806237979,-383.60920653,0.00013005,2]
[399884167,1766806237989,-500.0,0.00013005,2]
[399884168,1766806237998,-216.23803479,0.00013005,2]
[399884169,1766806238009,-305.60688466,0.00013005,2]
[399884170,1766806238019,-500.0,0.00013005,2]
[399884171,1766806238028,-189116.08,0.00013006,2]
[399884172,1766806238039,-1653.72,0.00013072,2]
[399884173,1766806238048,-1039.08,0.00013229,2]
[399884174,1766806238058,-18155.51771218,0.00013305,2]
[399884175,1766806238068,-1039.08,0.00013503,2]
[399884176,1766806238077,-500.0,0.00013698,2]
[399884177,1766806238087,-500.0,0.00013698,2]
[399884178,1766806238097,-500.0,0.00013698,2]
[399884179,1766806238107,-451.40062189,0.00013698,2]
[399884180,1766806238119,-500.0,0.00013698,2]
[399884181,1766806238129,-491.17772681,0.00013698,2]
[399884182,1766806238139,-500.0,0.00013698,2]
[399884183,1766806238149,-525.46897511,0.00013698,2]
[399884184,1766806238158,-500.0,0.00013698,2]
[399884185,1766806238168,-500.0,0.00013698,2]
[399884186,1766806238177,-500.0,0.00013698,2]
[399884187,1766806238187,-515.23361039,0.00013698,2]
[399884188,1766806238196,-500.0,0.00013698,2]
[399884189,1766806238206,-1039.08,0.00013777,2]
[399884190,1766806238216,-194.62871115,0.00013886,2]
[399884191,1766806238226,-255.0,0.0001396,2]
[399884195,1766806238570,-250.0,0.00013967,2]
[399884196,1766806238585,-195.0,0.00013967,2]
[399884197,1766806238595,-241.22133764,0.00013967,2]
[399884198,1766806238606,-300.0,0.00013967,2]
[399884199,1766806238616,-195.0,0.00013967,2]
[399884200,1766806238626,-195.0,0.00013967,2]
[399884201,1766806238635,-2560.91763224,0.00013967,2]
[399884202,1766806238645,-195.0,0.00013967,2]
[399884203,1766806238655,-600.0,0.00013967,2]
[399884204,1766806238664,-600.0,0.00013967,2]
[399884205,1766806238674,-600.0,0.00013967,2]
[399884206,1766806238684,-600.0,0.00013967,2]
[399884207,1766806238693,-295.89458097,0.00013967,2]
[399884208,1766806238703,-500.0,0.00013972,2]
[399884209,1766806238713,-1224.85801481,0.0001399,2]
[399884210,1766806238723,-217.32942933,0.00014045,2]
[399884211,1766806238733,-1039.08,0.00014051,2]
[399884212,1766806238743,-420.0,0.00014099,2]
[399884213,1766806238753,-420.0,0.00014099,2]
[399884214,1766806238763,-1680.0,0.00014139,2]
[399884215,1766806238773,-1039.08,0.00014325,2]
[399884216,1766806238784,-1000.0,0.00014336,2]
[399884217,1766806238794,-438.64051636,0.00014373,2]
[399884218,1766806238804,-500.0,0.00014373,2]
[399884219,1766806238814,-501.38477218,0.00014373,2]
[399884220,1766806238825,-500.0,0.00014373,2]
[399884221,1766806238836,-500.0,0.00014373,2]
[399884222,1766806238846,-500.0,0.00014373,2]
[399884223,1766806238856,-506.82649536,0.00014373,2]
[399884224,1766806238866,-500.0,0.00014373,2]
[399884225,1766806238876,-500.0,0.00014373,2]
[399884226,1766806238886,-500.0,0.00014373,2]
[399884227,1766806238897,-631.64269419,0.00014373,2]
[399884228,1766806238907,-10285.15197255,0.0001439,2]
[399884229,1766806238917,-377.91,0.00014422,2]
[399884230,1766806238927,-1280.0,0.0001445,2]
[399884231,1766806238937,-967.72,0.00014461,2]
[399884232,1766806238947,-297.44,0.00014547,2]
[399884233,1766806238956,-1039.08,0.00014599,2]
[399884234,1766806238966,-1039.10336896,0.00014873,2]
[399884235,1766806238976,-194.62871115,0.000149,2]
[399884236,1766806238986,-1000.0,0.00014921,2]
[399884237,1766806238995,-357.32172553,0.00014921,2]
[399884238,1766806239006,-1000.0,0.00014921,2]
[399884239,1766806239017,-1001.81306227,0.00014921,2]
[399884240,1766806239028,-624.794908,0.00014921,2]
[399884241,1766806239039,-1000.0,0.00014921,2]
[399884242,1766806239048,-463.86225342,0.00014921,2]
[399884243,1766806239059,-5014.92,0.00014999,2]
[399884244,1766806239068,-2042.26444642,0.00015,2]
[399884245,1766806239079,-795.68335278,0.00015,14]
[399884246,1766806239089,-7950.32567648,0.00015,2]
[399884247,1766806239099,-21374.48061437,0.00015,2]
[399884248,1766806239109,-1155.62518983,0.00015,2]
[399884249,1766806239119,-33608.66841871,0.00015,2]
[399884250,1766806239130,-150.0,0.00015022,2]
[399884251,1766806239140,-151.0,0.00015137,2]
[399884252,1766806239150,-151.0,0.00015137,2]
[399884253,1766806239160,-151.0,0.00015143,2]
[399884254,1766806239170,-151.0,0.00015143,2]
[399884255,1766806239180,-433.0,0.00015155,2]
[399884256,1766806239190,-1517.64,0.000153,2]
[399884257,1766806239200,-506.24881918,0.000154,2]
[399884258,1766806239210,-587.0,0.00015464,2]
[399884259,1766806239219,-587.0,0.00015464,2]
[399884260,1766806239230,-1506.53433204,0.00015468,2]
[399884261,1766806239240,-1002.76102603,0.00015468,2]
[399884262,1766806239250,-1505.41393441,0.00015468,2]
[399884263,1766806239259,-4602.6575803,0.0001548,2]
[399884264,1766806239270,-2351.0,0.00015553,2]
[399884265,1766806239280,-4759.38649671,0.00015556,2]
[399884266,1766806239289,-10227.28424528,0.00015853,2]
[399884267,1766806239299,-1000.0,0.00015928,2]
[399884268,1766806239308,-194.19827994,0.00015956,2]
[399884269,1766806239318,-539.54367136,0.00015956,2]
[399884270,1766806239329,-301.23078361,0.00015956,2]
[399884271,1766806239338,-192.09693079,0.00015956,2]
[399884272,1766806239348,-500.0,0.00015973,2]
[399884273,1766806239357,-358.02143385,0.00015973,2]
[399884274,1766806239367,-500.0,0.00015973,2]
[399884275,1766806239376,-500.0,0.00015973,2]
[399884276,1766806239386,-500.0,0.00015973,2]
[399884277,1766806239396,-500.0,0.00015973,2]
[399884278,1766806239406,-500.0,0.00015973,2]
[399884279,1766806239418,-500.0,0.00015973,2]
[399884280,1766806239428,-500.0,0.00015973,2]
[399884281,1766806239437,-500.0,0.00015973,2]
[399884282,1766806239447,-500.0,0.00015973,2]
[399884283,1766806239457,-502.50249806,0.00015973,2]
[399884284,1766806239467,-500.0,0.00015973,2]
[399884285,1766806239476,-503.17221117,0.00015973,2]
[399884286,1766806239485,-500.0,0.00015973,2]
[399884287,1766806239495,-500.0,0.00015973,2]
[399884288,1766806239504,-250.97805273,0.00015973,2]
[399884289,1766806239514,-500.0,0.00015973,2]
[399884290,1766806239524,-500.0,0.00015973,2]
[399884291,1766806239534,-500.0,0.00015973,2]
[399884292,1766806239543,-500.0,0.00015973,2]
[399884293,1766806239553,-500.0,0.00015973,2]
[399884294,1766806239563,-500.0,0.00015973,2]
[399884295,1766806239572,-500.0,0.00015973,2]
[399884296,1766806239582,-152.3880797,0.0001599,2]
[399884297,1766806239592,-2497886.54223685,0.00016,4]
[399884298,1766806239610,-3296.01226809,0.00016,4]
[399884299,1766806239622,-387.81872437,0.00016,4]
[399884300,1766806239671,-2268.13166762,0.00016,4]
[399884301,1766806239750,-766.51570007,0.00016,4]
[399884302,1766806239762,-651.08112575,0.00016,4]
[399884303,1766806239860,-1422.28525192,0.00016,4]
[399884304,1766806239872,-230994.94876695,0.00016,4]
[399884305,1766806239882,-1280.0,0.00016056,2]
[399884306,1766806239892,-5000.00250963,0.000162,5]
[399884307,1766806239902,-736.0,0.00016466,2]
[399884308,1766806239913,-1000.0,0.00016521,2]
[399884309,1766806239922,-1000.0,0.00016521,2]
[399884310,1766806239931,-1000.0,0.00016521,2]
[399884311,1766806239941,-1000.0,0.00016521,2]
[399884312,1766806239950,-1000.0,0.00016521,2]
[399884313,1766806239959,-1000.0,0.00016521,2]
[399884314,1766806239968,-1000.0,0.00016521,2]
[399884315,1766806239978,-1000.0,0.00016521,2]
[399884316,1766806239987,-1000.0,0.00016521,2]
[399884317,1766806239996,-571.12834552,0.00016521,2]
[399884318,1766806240006,-1000.0,0.00016521,2]
[399884319,1766806240015,-1000.0,0.00016521,2]
[399884320,1766806240024,-1000.0,0.00016521,2]
[399884321,1766806240034,-177.96713888,0.00016521,2]
[399884322,1766806240044,-1000.0,0.00016521,2]
[399884323,1766806240053,-1000.0,0.00016521,2]
[399884324,1766806240063,-1000.0,0.00016521,2]
[399884325,1766806240073,-158.41226066,0.00016705,2]
[399884327,1766806240082,-823.0,0.00016961,2]
[399884328,1766806240092,-207.0,0.00016961,2]
[399884329,1766806240101,-150.47229298,0.00016973,2]
[399884330,1766806240110,-345611.05677629,0.00017,2]
[399884331,1766806240120,-119777.89410969,0.00017,2]
[399884332,1766806240129,-306.90902189,0.00017068,2]
[399884333,1766806240138,-1500.0,0.00017068,2]
[399884334,1766806240147,-1000.0,0.00017068,2]
[399884335,1766806240157,-1500.0,0.00017068,2]
[399884336,1766806240166,-219.333204,0.00017068,2]
[399884337,1766806240176,-1500.0,0.00017068,2]
[399884338,1766806240185,-1602.22845676,0.00017068,2]
[399884339,1766806240195,-1500.0,0.00017068,2]
[399884340,1766806240205,-1500.0,0.00017068,2]
[399884341,1766806240214,-1500.0,0.00017068,2]
[399884342,1766806240223,-1472.71346033,0.00017068,2]
[399884343,1766806240233,-1500.0,0.00017068,2]
[399884344,1766806240243,-1500.0,0.00017068,2]
[399884345,1766806240252,-1500.0,0.00017068,2]
[399884346,1766806240262,-1500.0,0.00017068,2]
[399884347,1766806240271,-3292.0,0.00017109,2]
[399884348,1766806240280,-1000.0,0.00017521,2]
[399884349,1766806240289,-581.20257219,0.00017616,2]
[399884350,1766806240299,-2000.0,0.00017616,2]
[399884351,1766806240308,-2000.0,0.00017616,2]
[399884352,1766806240318,-2000.0,0.00017616,2]
[399884353,1766806240327,-1505.48427764,0.00017616,2]
[399884354,1766806240336,-2000.0,0.00017616,2]
[399884355,1766806240346,-2000.0,0.00017616,2]
[399884356,1766806240355,-2000.0,0.00017616,2]
[399884357,1766806240364,-1998.31513644,0.00017616,2]
[399884358,1766806240374,-1970.38817896,0.00017616,2]
[399884359,1766806240383,-1280.0,0.00017661,2]
[399884360,1766806240392,-9999.99,0.00017728,2]
[399884361,1766806240402,-7335.29,0.00017728,2]
[399884362,1766806240413,-333.97,0.00017728,2]
[399884363,1766806240423,-999.99,0.00017728,2]
[399884364,1766806240432,-1252.0,0.0001788,2]
[399884365,1766806240441,-420.69806265,0.00017893,2]
[399884366,1766806240450,-500.0,0.00017971,3]
[399884367,1766806240459,-218255.54434154,0.00018,2]
[399884372,1766806243174,-709.17,0.00018,2]
[399884373,1766806243186,-541.82394898,0.00018,2]
[399884377,1766806245546,-8803.94911695,0.00018,2]
[399884378,1766806245560,-3201.06353728,0.00018,2]
[399884379,1766806245569,-10164.96701672,0.00018,2]
[399884380,1766806245581,-4296.75088854,0.00018,2]
[399884381,1766806245592,-553.38530473,0.00018,2]
[399884382,1766806245603,-1089.88117537,0.00018,2]
[399884383,1766806245614,-15879.51192325,0.00018,2]
[399884384,1766806245768,-547.44,0.00018,2]
[399884385,1766806245780,-405.8537147,0.00018,2]
[399884386,1766806245791,-17899.09122192,0.00018,2]
[399884387,1766806245803,-4379.38218096,0.00018,2]
[399884388,1766806245813,-830.76090103,0.00018,2]
[399884389,1766806245828,-355.77728637,0.00018,2]
[399884390,1766806245838,-151.0,0.00018,2]
[399884391,1766806245848,-87.04668337,0.00018,2]
[399884392,1766806245860,-63.95331663,0.00018,2]
[399884393,1766806245869,-1001.72362349,0.00018164,2]
[399884394,1766806245879,-15.36199046,0.00018164,2]
[399884450,1766806801324,437.07422141,0.00030136,120]
[399884451,1766806803219,450.64371089,0.00030136,120]
[399884465,1766807153524,159.12,7.381e-05,2]
[399884466,1766807153713,159.12,8.611e-05,2]
[399884467,1766807153928,159.12,9.841e-05,2]
[399884468,1766807154122,159.12,0.00011071,2]
[399884475,1766807431690,-159.12,0.00012301,2]
[399884476,1766807431702,-605.02374582,0.00012646,2]
[399884477,1766807431712,-207.0,0.00012653,2]
[399884478,1766807431721,-300.0,0.00012653,2]
[399884479,1766807431731,-535.87387584,0.00012653,2]
[399884480,1766807431743,-664.12612416,0.00012653,2]
[399884481,1766807431753,-330.64,0.00012654,2]
[399884482,1766807431763,-500.0,0.00012654,2]
[399884483,1766807431772,-65.98143081,0.00012654,2]
[399884484,1766807431785,-434.01856919,0.00012654,2]
[399884485,1766807431795,-500.0,0.00012654,2]
[399884486,1766807431805,-500.0,0.00012654,2]
[399884487,1766807431815,-500.0,0.00012654,2]
[399884488,1766807431824,-500.0,0.00012654,2]
[399884489,1766807431839,-500.0,0.00012654,2]
[399884490,1766807431849,-500.0,0.00012654,2]
[399884491,1766807431859,-500.0,0.00012654,2]
[399884492,1766807431869,-500.0,0.00012654,2]
[399884493,1766807431879,-500.0,0.00012654,2]
[399884494,1766807431890,-382.0623456,0.00012654,2]
[399884495,1766807431900,-500.0,0.00012654,2]
[399884496,1766807431911,-577.81769494,0.00012654,2]
[399884497,1766807431922,-577.81769494,0.00012654,2]
[399884498,1766807431932,-360.59833944,0.00012655,2]
[399884499,1766807431942,-126.91403689,0.00012655,2]
[399884500,1766807431954,-954.12486311,0.00012655,2]
[399884502,1766807431964,-7851.12513689,0.00012655,2]
[399884504,1766807431975,-357.30360357,0.00012655,2]
[399884508,1766807437745,-577.81769494,0.00012654,2]
[399884509,1766807437754,-10423.81608985,0.00012655,2]
[399884511,1766807437795,-1090.66059968,0.00012655,2]
[399884514,1766807437903,-5974.004,0.00012655,2]
[399884515,1766807437915,-235144.08351236,0.00012655,2]
[399884516,1766807437956,-1457.87671966,0.00012655,2]
[399884562,1766807439792,-2648.724124,0.00012655,2]
[399884563,1766807439804,-2149.29574093,0.00012655,2]
[399884564,1766807439815,-4384.69147559,0.00012655,2]
[399884565,1766807439827,-774.6985844,0.00012655,2]
[399884566,1766807439844,-972.15998328,0.00012655,2]
[399884567,1766807439899,-1123.42602351,0.00012655,2]
[399884568,1766807440006,-2315.09651318,0.00012655,2]
[399884569,1766807440060,-723333.0378931,0.00012655,2]
[399884570,1766807440073,-200.0,0.00012747,2]
[399884571,1766807440083,-200.0,0.00012747,2]
[399884572,1766807440095,-500.0,0.00012747,2]
[399884573,1766807440106,-200.0,0.00012747,2]
[399884574,1766807440117,-150.0,0.00012753,2]
[399884575,1766807440127,-457.2644693,0.00012754,2]
[399884576,1766807440138,-330.64,0.00012928,2]
[399884577,1766807440154,-330.65,0.00013202,2]
[399884578,1766807440164,-200.0,0.00013295,2]
[399884579,1766807440174,-500.0,0.00013295,2]
[399884580,1766807440183,-200.0,0.00013295,2]
[399884581,1766807440193,-159.12,0.00013531,2]
[399884582,1766807440204,-250.0,0.00013531,2]
[399884583,1766807440214,-250.0,0.00013531,2]
[399884584,1766807440223,-250.0,0.00013531,2]
[399884585,1766807440234,-372.88,0.00013699,2]
[399884586,1766807440243,-220.46528526,0.00013768,2]
[399884587,1766807440253,-200.0,0.00013843,2]
[399884588,1766807440263,-500.0,0.00013843,2]
[399884589,1766807440273,-200.0,0.00013843,2]
[399884590,1766807440283,-255.0,0.0001385,2]
[399884591,1766807440292,-420.0,0.00013881,2]
[399884592,1766807440302,-1680.0,0.00013918,2]
[399884593,1766807440312,-195.0,0.0001392,2]
[399884594,1766807440321,-200.0,0.00014391,2]
[399884595,1766807440331,-500.0,0.00014391,2]
[399884596,1766807440340,-200.0,0.00014391,2]
[399884597,1766807440350,-159.12,0.00014761,2]
[399884598,1766807440360,-602.73,0.00014924,2]
[399884599,1766807440370,-999.0,0.00014925,3]
[399884600,1766807440380,-200.0,0.00014939,2]
[399884602,1766807440390,-500.0,0.00014939,2]
[399884603,1766807440399,-200.0,0.00014939,2]
[399884604,1766807440409,-200.0,0.00014967,2]
[399884605,1766807440419,-433.0,0.00015036,2]
[399884606,1766807440429,-587.0,0.00015228,2]
[399884607,1766807440439,-151.0,0.00015279,2]
[399884608,1766807440450,-151.0,0.00015279,2]
[399884609,1766807440460,-2351.0,0.0001531,2]
[399884610,1766807440470,-207.4,0.00015486,2]
[399884611,1766807440479,-200.0,0.00015487,2]
[399884612,1766807440489,-500.0,0.00015487,2]
[399884613,1766807440500,-200.0,0.00015487,2]
[399884614,1766807440510,-605.02374582,0.00015563,2]
[399884615,1766807440524,-500.0,0.00015973,2]
[399884616,1766807440534,-500.0,0.00015973,2]
[399884617,1766807440543,-500.0,0.00015973,2]
[399884618,1766807440553,-500.0,0.00015973,2]
[399884619,1766807440563,-571.12834552,0.00015973,2]
[399884620,1766807440572,-500.0,0.00015973,2]
[399884621,1766807440582,-500.0,0.00015973,2]
[399884622,1766807440591,-500.0,0.00015973,2]
[399884623,1766807440601,-500.0,0.00015973,2]
[399884624,1766807440611,-500.0,0.00015973,2]
[399884625,1766807440620,-500.0,0.00015973,2]
[399884626,1766807440630,-500.0,0.00015973,2]
[399884627,1766807440639,-500.0,0.00015973,2]
[399884628,1766807440650,-177.96713888,0.00015973,2]
[399884629,1766807440660,-500.0,0.00015973,2]
[399884630,1766807440669,-500.0,0.00015973,2]
[399884631,1766807440679,-500.0,0.00015973,2]
[399884632,1766807440688,-200.0,0.00016035,2]
[399884633,1766807440698,-200.0,0.00016035,2]
[399884634,1766807440712,-170.56,0.00016108,2]
[399884635,1766807440722,-736.0,0.00016337,2]
[399884636,1766807440732,-1000.0,0.00016521,2]
[399884637,1766807440742,-1000.0,0.00016521,2]
[399884638,1766807440752,-719.333204,0.00016521,2]
[399884639,1766807440761,-1000.0,0.00016521,2]
[399884640,1766807440771,-1000.0,0.00016521,2]
[399884641,1766807440781,-1000.0,0.00016521,2]
[399884642,1766807440791,-806.90902189,0.00016521,2]
[399884643,1766807440801,-1000.0,0.00016521,2]
[399884644,1766807440811,-1000.0,0.00016521,2]
[399884645,1766807440821,-1000.0,0.00016521,2]
[399884646,1766807440831,-1000.0,0.00016521,2]
[399884647,1766807440841,-1000.0,0.00016521,2]
[399884648,1766807440851,-1000.0,0.00016521,2]
[399884649,1766807440861,-1000.0,0.00016521,2]
[399884650,1766807440871,-1000.0,0.00016521,2]
[399884651,1766807440880,-253.99572653,0.00016583,2]
[399884652,1766807440890,-200.0,0.00016583,2]
[399884653,1766807440903,-823.0,0.00016706,2]
[399884654,1766807440913,-3292.0,0.00016841,2]
[399884655,1766807440924,-150.47229298,0.00016973,2]
[399884656,1766807440935,-250.0,0.00017,2]
[399884657,1766807440946,-500.0,0.00017068,2]
[399884658,1766807440956,-1581.20257219,0.00017068,2]
[399884659,1766807440966,-1500.0,0.00017068,2]
[399884660,1766807440977,-1500.0,0.00017068,2]
[399884661,1766807440987,-1500.0,0.00017068,2]
[399884662,1766807440997,-1500.0,0.00017068,2]
[399884663,1766807441008,-1102.22845676,0.00017068,2]
[399884664,1766807441018,-1500.0,0.00017068,2]
[399884665,1766807441029,-1500.0,0.00017068,2]
[399884666,1766807441039,-972.71346033,0.00017068,2]
[399884667,1766807441049,-1500.0,0.00017068,2]
[399884668,1766807441059,-1500.0,0.00017068,2]
[399884669,1766807441069,-1500.0,0.00017068,2]
[399884670,1766807441080,-200.0,0.00017131,2]
[399884671,1766807441091,-200.0,0.00017174,2]
[399884672,1766807441101,-360.59833941,0.00017363,2]
[399884673,1766807441112,-1500.0,0.00017616,2]
[399884674,1766807441122,-2000.0,0.00017616,2]
[399884675,1766807441133,-1005.48427764,0.00017616,2]